fUST/lending_fUST_20240826
["ID","MTS","AMOUNT","RATE_DAILY","PERIOD"]
[335972152,1724647844240,-500.0,0.00012285,2]
[335972172,1724647844425,-500.0,0.00012285,2]
[335972174,1724647844436,-500.0,0.00012285,2]
[335972176,1724647844447,-500.0,0.00012285,2]
[335972178,1724647844458,-500.0,0.00012285,2]
[335972180,1724647844468,-578.98,0.00012285,2]
[335972182,1724647844478,-847.28,0.00012285,2]
[335972184,1724647844492,-500.0,0.00012285,2]
[335972187,1724647844503,-1278.87,0.00012285,2]
[335972189,1724647844514,-33255.09,0.00012285,2]
[335972191,1724647844524,-857.51,0.00012285,2]
[335972193,1724647844536,-888.94,0.00012285,2]
[335972195,1724647844548,-890.04,0.00012285,2]
[335972197,1724647844559,-500.0,0.00012285,2]
[335972199,1724647844571,-722.37,0.00012285,2]
[335972200,1724647844582,-716.76,0.00012285,2]
[335972201,1724647844593,-1931.61,0.00012285,2]
[335972202,1724647844604,-1369.41,0.00012285,2]
[335972203,1724647844614,-500.0,0.00012285,2]
[335972204,1724647844624,-2393.68,0.00012285,2]
[335972205,1724647844634,-500.0,0.00012285,2]
[335972206,1724647844643,-518.27,0.00012285,2]
[335972207,1724647844652,-5758.89,0.00012285,2]
[335972208,1724647844662,-707.03,0.00012285,2]
[335972209,1724647844672,-1429.82,0.00012285,2]
[335972210,1724647844681,-656.87,0.00012285,2]
[335972211,1724647844691,-500.0,0.00012285,2]
[335972212,1724647844704,-10985.99,0.00012285,2]
[335972214,1724647844716,-500.0,0.00012285,2]
[335972215,1724647844727,-586.49,0.00012285,2]
[335972216,1724647844739,-500.0,0.00012285,2]
[335972217,1724647844750,-789.71,0.00012285,2]
[335972219,1724647844761,-500.0,0.00012285,2]
[335972221,1724647844772,-500.0,0.00012285,2]
[335972223,1724647844781,-758.57,0.00012285,2]
[335972225,1724647844791,-683.65,0.00012285,2]
[335972226,1724647844801,-500.0,0.00012285,2]
[335972228,1724647844811,-538.4,0.00012285,2]
[335972229,1724647844821,-2678.26,0.00012285,2]
[335972231,1724647844832,-500.0,0.00012285,2]
[335972233,1724647844843,-544.57,0.00012285,2]
[335972235,1724647844855,-911.31,0.00012285,2]
[335972237,1724647844866,-500.0,0.00012285,2]
[335972238,1724647844877,-1194.5,0.00012285,2]
[335972239,1724647844889,-500.0,0.00012285,2]
[335972240,1724647844899,-500.0,0.00012285,2]
[335972241,1724647844908,-1064.3,0.00012285,2]
[335972242,1724647844918,-500.0,0.00012285,2]
[335972243,1724647844928,-556.11,0.00012285,2]
[335972245,1724647844938,-500.0,0.00012285,2]
[335972247,1724647844949,-586.23,0.00012285,2]
[335972249,1724647844959,-849.67,0.00012285,2]
[335972250,1724647844969,-915.05,0.00012285,2]
[335972251,1724647844979,-724.28,0.00012285,2]
[335972252,1724647844989,-676.76,0.00012285,2]
[335972253,1724647844999,-500.0,0.00012296,2]
[335972254,1724647845009,-500.0,0.00012296,2]
[335972255,1724647845022,-500.0,0.00012296,2]
[335972256,1724647845032,-500.0,0.00012296,2]
[335972257,1724647845041,-500.0,0.00012296,2]
[335972258,1724647845051,-500.0,0.00012296,2]
[335972259,1724647845060,-500.0,0.00012296,2]
[335972260,1724647845069,-500.0,0.00012296,2]
[335972261,1724647845078,-500.0,0.00012296,2]
[335972262,1724647845087,-500.0,0.00012296,2]
[335972263,1724647845098,-500.0,0.00012296,2]
[335972264,1724647845109,-500.0,0.00012296,2]
[335972265,1724647845120,-1001.01,0.00012296,2]
[335972266,1724647845130,-536.41717787,0.00012296,2]
[335972267,1724647845139,-500.0,0.00012296,2]
[335972269,1724647845148,-500.0,0.00012296,2]
[335972270,1724647845158,-923.01,0.00012296,2]
[335972271,1724647845167,-500.0,0.00012296,2]
[335972272,1724647845176,-500.0,0.00012296,2]
[335972273,1724647845185,-500.0,0.00012296,2]
[335972274,1724647845195,-500.0,0.00012296,2]
[335972275,1724647845205,-554.96,0.00012296,2]
[335972276,1724647845214,-1064.73,0.00012296,2]
[335972277,1724647845224,-500.0,0.00012296,2]
[335972278,1724647845233,-228.38501131,0.00012296,2]
[335972279,1724647845243,-928.74,0.00012296,2]
[335972280,1724647845252,-502.3,0.00012296,2]
[335972282,1724647845262,-556.12,0.00012296,2]
[335972283,1724647845271,-500.0,0.00012296,2]
[335972284,1724647845281,-500.0,0.00012296,2]
[335972285,1724647845290,-500.0,0.00012296,2]
[335972286,1724647845299,-1036.85,0.00012296,2]
[335972287,1724647845309,-500.0,0.00012296,2]
[335972288,1724647845318,-500.0,0.00012296,2]
[335972289,1724647845327,-516.48,0.00012296,2]
[335972290,1724647845337,-500.0,0.00012296,2]
[335972291,1724647845346,-605.7,0.00012296,2]
[335972292,1724647845356,-500.0,0.00012296,2]
[335972293,1724647845365,-524.28,0.00012296,2]
[335972294,1724647845375,-500.0,0.00012296,2]
[335972295,1724647845384,-500.0,0.00012296,2]
[335972296,1724647845394,-500.0,0.00012296,2]
[335972297,1724647845403,-500.0,0.00012296,2]
[335972298,1724647845413,-500.0,0.00012296,2]
[335972299,1724647845426,-500.0,0.00012296,2]
[335972300,1724647845437,-500.0,0.00012296,2]
[335972301,1724647845449,-587.26,0.00012296,2]
[335972302,1724647845459,-1081.13,0.00012296,2]
[335972303,1724647845469,-501.47,0.00012296,2]
[335972304,1724647845479,-752.49,0.00012296,2]
[335972305,1724647845490,-500.0,0.00012296,2]
[335972306,1724647845500,-500.0,0.00012296,2]
[335972307,1724647845514,-500.0,0.00012296,2]
[335972308,1724647845525,-181.57135356,0.00012296,2]
[335972310,1724647845537,-500.0,0.00012296,2]
[335972311,1724647845548,-500.0,0.00012296,2]
[335972312,1724647845560,-500.0,0.00012296,2]
[335972313,1724647845570,-525.84,0.00012296,2]
[335972314,1724647845580,-517.46,0.00012296,2]
[335972315,1724647845590,-609.85291189,0.00012296,2]
[335972316,1724647845601,-500.0,0.00012296,2]
[335972317,1724647845611,-500.0,0.00012296,2]
[335972318,1724647845620,-500.0,0.00012296,2]
[335972319,1724647845630,-500.0,0.00012296,2]
[335972321,1724647845640,-647.35,0.00012296,2]
[335972322,1724647845649,-588.33,0.00012296,2]
[335972323,1724647845659,-500.0,0.00012296,2]
[335972324,1724647845668,-792.46,0.00012296,2]
[335972325,1724647845678,-500.0,0.00012296,2]
[335972326,1724647845688,-500.0,0.00012296,2]
[335972327,1724647845698,-500.0,0.00012296,2]
[335972328,1724647845708,-500.0,0.00012296,2]
[335972329,1724647845718,-162.21700301,0.00012296,2]
[335972330,1724647845728,-549.98,0.00012296,2]
[335972331,1724647845739,-500.0,0.00012296,2]
[335972332,1724647845749,-500.0,0.00012296,2]
[335972333,1724647845758,-429.47140615,0.00012296,2]
[335972334,1724647845768,-500.0,0.00012296,2]
[335972335,1724647845777,-500.0,0.00012296,2]
[335972336,1724647845787,-500.0,0.00012296,2]
[335972337,1724647845796,-500.0,0.00012296,2]
[335972338,1724647845805,-1112.24,0.00012296,2]
[335972339,1724647845814,-526.89,0.00012296,2]
[335972341,1724647845823,-500.0,0.00012296,2]
[335972343,1724647845833,-500.0,0.00012296,2]
[335972344,1724647845841,-500.0,0.00012296,2]
[335972345,1724647845850,-500.0,0.00012296,2]
[335972346,1724647845860,-618.02126839,0.00012296,2]
[335972347,1724647845869,-1128.76,0.00012296,2]
[335972348,1724647845878,-1051.05,0.00012296,2]
[335972349,1724647845887,-500.0,0.00012296,2]
[335972350,1724647845896,-806.96,0.00012296,2]
[335972351,1724647845905,-500.0,0.00012296,2]
[335972352,1724647845914,-1203.48,0.00012296,2]
[335972353,1724647845923,-500.0,0.00012296,2]
[335972354,1724647845932,-640.01,0.00012296,2]
[335972355,1724647845941,-500.0,0.00012296,2]
[335972356,1724647845951,-500.0,0.00012296,2]
[335972357,1724647845960,-882.06,0.00012296,2]
[335972358,1724647845969,-500.0,0.00012296,2]
[335972359,1724647845978,-500.0,0.00012296,2]
[335972360,1724647845989,-508.93,0.00012296,2]
[335972361,1724647845997,-500.0,0.00012296,2]
[335972362,1724647846008,-500.0,0.00012296,2]
[335972363,1724647846018,-500.0,0.00012296,2]
[335972364,1724647846032,-500.0,0.00012296,2]
[335972365,1724647846042,-500.0,0.00012296,2]
[335972366,1724647846051,-500.0,0.00012296,2]
[335972367,1724647846060,-682.94,0.00012296,2]
[335972368,1724647846069,-609.40391507,0.00012296,2]
[335972369,1724647846078,-968.4,0.00012296,2]
[335972370,1724647846087,-500.0,0.00012296,2]
[335972371,1724647846096,-1044.62,0.00012296,2]
[335972372,1724647846105,-554.72,0.00012296,2]
[335972373,1724647846115,-512.71,0.00012296,2]
[335972374,1724647846124,-757.31,0.00012296,2]
[335972375,1724647846133,-500.0,0.00012296,2]
[335972376,1724647846142,-831.92,0.00012296,2]
[335972377,1724647846151,-500.0,0.00012296,2]
[335972378,1724647846161,-500.0,0.00012296,2]
[335972379,1724647846169,-500.0,0.00012296,2]
[335972380,1724647846179,-500.0,0.00012296,2]
[335972381,1724647846187,-500.0,0.00012296,2]
[335972382,1724647846196,-523.57090291,0.00012296,2]
[335972383,1724647846206,-534.83,0.00012296,2]
[335972384,1724647846214,-500.0,0.00012296,2]
[335972385,1724647846224,-500.0,0.00012296,2]
[335972386,1724647846233,-240.03462011,0.00012296,2]
[335972387,1724647846242,-727.38,0.00012296,2]
[335972388,1724647846251,-433.30456367,0.00012296,2]
[335972389,1724647846261,-500.0,0.00012296,2]
[335972390,1724647846269,-500.0,0.00012296,2]
[335972391,1724647846279,-708.55,0.00012296,2]
[335972392,1724647846288,-524.51,0.00012296,2]
[335972393,1724647846297,-230.8358558,0.00012296,2]
[335972394,1724647846306,-500.0,0.00012296,2]
[335972395,1724647846315,-507.59,0.00012296,2]
[335972396,1724647846324,-500.0,0.00012296,2]
[335972397,1724647846333,-500.0,0.00012296,2]
[335972398,1724647846342,-783.03,0.00012296,2]
[335972399,1724647846351,-706.71,0.00012296,2]
[335972400,1724647846360,-500.0,0.00012296,2]
[335972401,1724647846369,-1161.96,0.00012296,2]
[335972402,1724647846379,-500.0,0.00012296,2]
[335972403,1724647846388,-622.73,0.00012296,2]
[335972404,1724647846397,-500.0,0.00012296,2]
[335972405,1724647846406,-516.57926988,0.00012296,2]
[335972406,1724647846414,-500.0,0.00012296,2]
[335972407,1724647846424,-1059.47,0.00012296,2]
[335972408,1724647846433,-523.12602521,0.00012296,2]
[335972409,1724647846442,-530.43,0.00012296,2]
[335972410,1724647846451,-793.71,0.00012296,2]
[335972411,1724647846460,-500.0,0.00012296,2]
[335972412,1724647846469,-570.27,0.00012296,2]
[335972413,1724647846478,-760.57,0.00012296,2]
[335972414,1724647846487,-839.88,0.00012296,2]
[335972415,1724647846495,-1148.79,0.00012296,2]
[335972416,1724647846505,-500.0,0.00012296,2]
[335972417,1724647846515,-508.11,0.00012296,2]
[335972418,1724647846524,-500.0,0.00012296,2]
[335972419,1724647846534,-500.0,0.00012296,2]
[335972420,1724647846543,-500.0,0.00012296,2]
[335972421,1724647846552,-676.2,0.00012296,2]
[335972422,1724647846561,-688.7,0.00012296,2]
[335972423,1724647846570,-500.0,0.00012296,2]
[335972424,1724647846579,-518.18,0.00012296,2]
[335972425,1724647846588,-592.77987138,0.00012296,2]
[335972426,1724647846597,-1150.47,0.00012296,2]
[335972427,1724647846606,-500.0,0.00012296,2]
[335972428,1724647846615,-649.83,0.00012296,2]
[335972429,1724647846624,-500.0,0.00012296,2]
[335972430,1724647846633,-527.62,0.00012296,2]
[335972431,1724647846642,-666.98,0.00012296,2]
[335972432,1724647846651,-500.0,0.00012296,2]
[335972433,1724647846660,-500.0,0.00012296,2]
[335972434,1724647846669,-660.37,0.00012296,2]
[335972435,1724647846680,-500.0,0.00012296,2]
[335972436,1724647846689,-500.0,0.00012296,2]
[335972437,1724647846698,-775.91,0.00012296,2]
[335972438,1724647846707,-806.8,0.00012296,2]
[335972439,1724647846716,-500.0,0.00012296,2]
[335972440,1724647846725,-1048.8,0.00012296,2]
[335972441,1724647846734,-490.97913741,0.00012296,2]
[335972442,1724647846744,-536.34,0.00012296,2]
[335972443,1724647846753,-500.0,0.00012296,2]
[335972444,1724647846761,-261.11104018,0.00012296,2]
[335972445,1724647846770,-500.0,0.00012296,2]
[335972446,1724647846780,-500.0,0.00012296,2]
[335972447,1724647846841,-937.73,0.00012296,2]
[335972448,1724647846851,-715.98,0.00012296,2]
[335972449,1724647846860,-814.06,0.00012296,2]
[335972450,1724647846868,-500.0,0.00012296,2]
[335972451,1724647846877,-500.88101691,0.00012296,2]
[335972452,1724647846887,-530.36907408,0.00012296,2]
[335972453,1724647846896,-500.0,0.00012296,2]
[335972454,1724647846905,-500.0,0.00012296,2]
[335972455,1724647846914,-500.0,0.00012296,2]
[335972456,1724647846924,-500.0,0.00012296,2]
[335972457,1724647846933,-500.0,0.00012296,2]
[335972458,1724647846941,-500.0,0.00012296,2]
[335972459,1724647846951,-500.0,0.00012296,2]
[335972460,1724647846959,-500.0,0.00012296,2]
[335972461,1724647846969,-500.0,0.00012296,2]
[335972462,1724647846978,-3094.87417801,0.00012356,2]
[335972463,1724647846987,-9666.3354033,0.00012356,2]
[335972464,1724647846996,-2167.77324026,0.00012356,2]
[335972465,1724647847006,-3000.0,0.0001238,2]
[335972466,1724647847015,-285.0,0.00012474,2]
[335972467,1724647847027,-285.0,0.00012474,2]
[335972468,1724647847036,-285.0,0.00012474,2]
[335972469,1724647847044,-285.0,0.00012474,2]
[335972470,1724647847053,-285.0,0.00012474,2]
[335972471,1724647847064,-285.0,0.00012474,2]
[335972472,1724647847072,-285.0,0.00012474,2]
[335972473,1724647847081,-285.0,0.00012474,2]
[335972474,1724647847090,-285.0,0.00012474,2]
[335972475,1724647847101,-285.0,0.00012474,2]
[335972476,1724647847110,-285.0,0.00012474,2]
[335972477,1724647847118,-285.0,0.00012474,2]
[335972478,1724647847127,-285.0,0.00012474,2]
[335972479,1724647847136,-285.0,0.00012474,2]
[335972480,1724647847146,-523.0,0.00012474,2]
[335972481,1724647847155,-523.0,0.00012474,2]
[335972482,1724647847164,-523.0,0.00012474,2]
[335972483,1724647847173,-523.0,0.00012474,2]
[335972484,1724647847181,-523.0,0.00012474,2]
[335972485,1724647847190,-523.0,0.00012474,2]
[335972486,1724647847199,-523.0,0.00012474,2]
[335972487,1724647847208,-523.0,0.00012474,2]
[335972488,1724647847217,-523.0,0.00012474,2]
[335972489,1724647847226,-523.0,0.00012474,2]
[335972490,1724647847235,-523.0,0.00012474,2]
[335972491,1724647847244,-523.0,0.00012474,2]
[335972492,1724647847253,-523.0,0.00012474,2]
[335972493,1724647847262,-523.0,0.00012474,2]
[335972494,1724647847271,-284.0,0.00012474,2]
[335972495,1724647847280,-284.0,0.00012474,2]
[335972496,1724647847289,-284.0,0.00012474,2]
[335972497,1724647847297,-284.0,0.00012474,2]
[335972498,1724647847306,-284.0,0.00012474,2]
[335972499,1724647847315,-284.0,0.00012474,2]
[335972500,1724647847324,-284.0,0.00012474,2]
[335972501,1724647847334,-284.0,0.00012474,2]
[335972502,1724647847343,-284.0,0.00012474,2]
[335972503,1724647847352,-284.0,0.00012474,2]
[335972504,1724647847361,-284.0,0.00012474,2]
[335972505,1724647847370,-284.0,0.00012474,2]
[335972506,1724647847379,-284.0,0.00012474,2]
[335972507,1724647847388,-284.0,0.00012474,2]
[335972508,1724647847396,-522.0,0.00012474,2]
[335972509,1724647847406,-522.0,0.00012474,2]
[335972510,1724647847414,-522.0,0.00012474,2]
[335972511,1724647847423,-522.0,0.00012474,2]
[335972512,1724647847432,-522.0,0.00012474,2]
[335972513,1724647847442,-522.0,0.00012474,2]
[335972514,1724647847451,-522.0,0.00012474,2]
[335972515,1724647847460,-522.0,0.00012474,2]
[335972516,1724647847470,-522.0,0.00012474,2]
[335972517,1724647847478,-522.0,0.00012474,2]
[335972518,1724647847487,-522.0,0.00012474,2]
[335972519,1724647847508,-522.0,0.00012474,2]
[335972520,1724647847518,-522.0,0.00012474,2]
[335972521,1724647847528,-522.0,0.00012474,2]
[335972522,1724647847537,-284.0,0.00012474,2]
[335972523,1724647847546,-284.0,0.00012474,2]
[335972524,1724647847555,-284.0,0.00012474,2]
[335972525,1724647847564,-284.0,0.00012474,2]
[335972526,1724647847574,-284.0,0.00012474,2]
[335972527,1724647847583,-284.0,0.00012474,2]
[335972528,1724647847592,-284.0,0.00012474,2]
[335972529,1724647847602,-284.0,0.00012474,2]
[335972530,1724647847611,-284.0,0.00012474,2]
[335972531,1724647847621,-522.0,0.00012474,2]
[335972532,1724647847630,-522.0,0.00012474,2]
[335972533,1724647847640,-522.0,0.00012474,2]
[335972534,1724647847649,-522.0,0.00012474,2]
[335972535,1724647847658,-522.0,0.00012474,2]
[335972536,1724647847668,-522.0,0.00012474,2]
[335972537,1724647847677,-522.0,0.00012474,2]
[335972538,1724647847687,-522.0,0.00012474,2]
[335972539,1724647847696,-284.0,0.00012475,2]
[335972540,1724647847705,-284.0,0.00012475,2]
[335972541,1724647847715,-284.0,0.00012475,2]
[335972542,1724647847724,-284.0,0.00012475,2]
[335972543,1724647847733,-284.0,0.00012475,2]
[335972544,1724647847744,-284.0,0.00012475,2]
[335972545,1724647847753,-284.0,0.00012475,2]
[335972546,1724647847763,-284.0,0.00012475,2]
[335972547,1724647847771,-284.0,0.00012475,2]
[335972548,1724647847781,-284.0,0.00012475,2]
[335972549,1724647847790,-284.0,0.00012475,2]
[335972550,1724647847799,-284.0,0.00012475,2]
[335972551,1724647847808,-284.0,0.00012475,2]
[335972552,1724647847817,-284.0,0.00012475,2]
[335972553,1724647847826,-522.0,0.00012475,2]
[335972554,1724647847836,-522.0,0.00012475,2]
[335972555,1724647847845,-522.0,0.00012475,2]
[335972556,1724647847855,-522.0,0.00012475,2]
[335972557,1724647847864,-522.0,0.00012475,2]
[335972558,1724647847873,-522.0,0.00012475,2]
[335972559,1724647847883,-522.0,0.00012475,2]
[335972560,1724647847892,-522.0,0.00012475,2]
[335972561,1724647847902,-522.0,0.00012475,2]
[335972562,1724647847912,-522.0,0.00012475,2]
[335972563,1724647847921,-522.0,0.00012475,2]
[335972564,1724647847931,-522.0,0.00012475,2]
[335972565,1724647847941,-522.0,0.00012475,2]
[335972566,1724647847951,-285.0,0.00012475,2]
[335972567,1724647847960,-285.0,0.00012475,2]
[335972568,1724647847970,-285.0,0.00012475,2]
[335972569,1724647847980,-285.0,0.00012475,2]
[335972570,1724647847990,-285.0,0.00012475,2]
[335972571,1724647847999,-285.0,0.00012475,2]
[335972572,1724647848008,-285.0,0.00012475,2]
[335972573,1724647848018,-285.0,0.00012475,2]
[335972574,1724647848032,-285.0,0.00012475,2]
[335972575,1724647848043,-523.0,0.00012475,2]
[335972576,1724647848053,-523.0,0.00012475,2]
[335972577,1724647848063,-523.0,0.00012475,2]
[335972578,1724647848072,-523.0,0.00012475,2]
[335972579,1724647848081,-523.0,0.00012475,2]
[335972580,1724647848090,-523.0,0.00012475,2]
[335972581,1724647848099,-523.0,0.00012475,2]
[335972582,1724647848109,-523.0,0.00012475,2]
[335972583,1724647848119,-523.0,0.00012475,2]
[335972584,1724647848128,-523.0,0.00012475,2]
[335972585,1724647848138,-523.0,0.00012475,2]
[335972586,1724647848147,-523.0,0.00012475,2]
[335972587,1724647848156,-285.0,0.00012475,2]
[335972588,1724647848165,-285.0,0.00012475,2]
[335972589,1724647848174,-285.0,0.00012475,2]
[335972590,1724647848183,-285.0,0.00012475,2]
[335972591,1724647848192,-285.0,0.00012475,2]
[335972592,1724647848201,-285.0,0.00012475,2]
[335972593,1724647848210,-285.0,0.00012475,2]
[335972594,1724647848219,-285.0,0.00012475,2]
[335972595,1724647848229,-285.0,0.00012475,2]
[335972596,1724647848240,-523.0,0.00012475,2]
[335972597,1724647848249,-523.0,0.00012475,2]
[335972598,1724647848268,-523.0,0.00012475,2]
[335972599,1724647848277,-523.0,0.00012475,2]
[335972600,1724647848286,-523.0,0.00012475,2]
[335972601,1724647848295,-523.0,0.00012475,2]
[335972602,1724647848305,-523.0,0.00012475,2]
[335972603,1724647848315,-523.0,0.00012475,2]
[335972604,1724647848323,-523.0,0.00012475,2]
[335972605,1724647848332,-523.0,0.00012475,2]
[335972606,1724647848341,-523.0,0.00012475,2]
[335972607,1724647848351,-285.0,0.00012475,2]
[335972608,1724647848360,-285.0,0.00012475,2]
[335972609,1724647848369,-285.0,0.00012475,2]
[335972610,1724647848378,-285.0,0.00012475,2]
[335972611,1724647848387,-285.0,0.00012475,2]
[335972612,1724647848396,-285.0,0.00012475,2]
[335972613,1724647848406,-285.0,0.00012475,2]
[335972614,1724647848415,-285.0,0.00012475,2]
[335972615,1724647848425,-285.0,0.00012475,2]
[335972616,1724647848434,-285.0,0.00012475,2]
[335972617,1724647848443,-285.0,0.00012475,2]
[335972618,1724647848453,-285.0,0.00012475,2]
[335972619,1724647848461,-285.0,0.00012475,2]
[335972620,1724647848470,-285.0,0.00012475,2]
[335972621,1724647848479,-523.0,0.00012475,2]
[335972622,1724647848489,-523.0,0.00012475,2]
[335972623,1724647848498,-523.0,0.00012475,2]
[335972624,1724647848507,-523.0,0.00012475,2]
[335972625,1724647848516,-523.0,0.00012475,2]
[335972626,1724647848525,-523.0,0.00012475,2]
[335972627,1724647848535,-523.0,0.00012475,2]
[335972628,1724647848544,-523.0,0.00012475,2]
[335972629,1724647848553,-523.0,0.00012475,2]
[335972630,1724647848562,-523.0,0.00012475,2]
[335972631,1724647848571,-523.0,0.00012475,2]
[335972632,1724647848580,-285.0,0.00012475,2]
[335972633,1724647848590,-285.0,0.00012475,2]
[335972634,1724647848599,-285.0,0.00012475,2]
[335972635,1724647848608,-285.0,0.00012475,2]
[335972636,1724647848617,-285.0,0.00012475,2]
[335972637,1724647848626,-285.0,0.00012475,2]
[335972638,1724647848635,-285.0,0.00012475,2]
[335972639,1724647848644,-285.0,0.00012475,2]
[335972640,1724647848654,-285.0,0.00012475,2]
[335972641,1724647848664,-285.0,0.00012475,2]
[335972642,1724647848673,-285.0,0.00012475,2]
[335972643,1724647848683,-285.0,0.00012475,2]
[335972644,1724647848692,-285.0,0.00012475,2]
[335972645,1724647848701,-285.0,0.00012475,2]
[335972646,1724647848711,-523.0,0.00012475,2]
[335972647,1724647848720,-523.0,0.00012475,2]
[335972648,1724647848730,-523.0,0.00012475,2]
[335972649,1724647848741,-523.0,0.00012475,2]
[335972650,1724647848750,-523.0,0.00012475,2]
[335972651,1724647848759,-523.0,0.00012475,2]
[335972652,1724647848768,-523.0,0.00012475,2]
[335972653,1724647848777,-523.0,0.00012475,2]
[335972654,1724647848786,-523.0,0.00012475,2]
[335972655,1724647848795,-523.0,0.00012475,2]
[335972656,1724647848805,-523.0,0.00012475,2]
[335972657,1724647848814,-523.0,0.00012475,2]
[335972658,1724647848823,-523.0,0.00012475,2]
[335972659,1724647848832,-523.0,0.00012475,2]
[335972660,1724647848841,-153.0,0.000125,2]
[335972661,1724647848851,-415.5487372,0.000125,2]
[335972662,1724647848860,-155.2889194,0.000125,2]
[335972663,1724647848869,-2144.32657805,0.00012516,2]
[335972664,1724647848879,-27875.82946941,0.00012551,5]
[335972665,1724647848888,-8535.84,0.00012557,2]
[335972666,1724647848897,-500.0,0.00012557,2]
[335972667,1724647848907,-760.01,0.00012557,2]
[335972668,1724647848916,-500.0,0.00012557,2]
[335972669,1724647848926,-637.72,0.00012557,2]
[335972670,1724647848935,-500.0,0.00012557,2]
[335972671,1724647848944,-582.63,0.00012557,2]
[335972672,1724647848954,-720.95,0.00012557,2]
[335972673,1724647848964,-13489.45,0.00012557,2]
[335972674,1724647848973,-500.0,0.00012558,2]
[335972675,1724647848982,-762.65,0.00012558,2]
[335972676,1724647848991,-642.64,0.00012558,2]
[335972677,1724647849001,-500.0,0.00012558,2]
[335972678,1724647849011,-500.0,0.00012558,2]
[335972679,1724647849022,-500.0,0.00012558,2]
[335972680,1724647849032,-500.0,0.00012558,2]
[335972681,1724647849042,-500.0,0.00012558,2]
[335972682,1724647849051,-509.36192606,0.00012558,2]
[335972683,1724647849061,-500.0,0.00012558,2]
[335972684,1724647849070,-673.2,0.00012558,2]
[335972685,1724647849080,-500.0,0.00012558,2]
[335972686,1724647849090,-2587.11,0.00012558,2]
[335972687,1724647849099,-500.0,0.00012558,2]
[335972688,1724647849109,-657.77,0.00012558,2]
[335972689,1724647849119,-500.0,0.00012558,2]
[335972690,1724647849128,-3415.97,0.00012558,2]
[335972691,1724647849137,-500.0,0.00012558,2]
[335972692,1724647849146,-500.0,0.00012558,2]
[335972693,1724647849156,-500.0,0.00012558,2]
[335972694,1724647849166,-500.0,0.00012558,2]
[335972695,1724647849175,-728.85,0.00012558,2]
[335972696,1724647849185,-500.0,0.00012558,2]
[335972697,1724647849194,-500.0,0.00012558,2]
[335972698,1724647849203,-751.26,0.00012558,2]
[335972699,1724647849212,-500.0,0.00012558,2]
[335972700,1724647849222,-500.0,0.00012558,2]
[335972701,1724647849231,-619.95,0.00012558,2]
[335972702,1724647849241,-532.77848873,0.00012558,2]
[335972703,1724647849250,-500.0,0.00012558,2]